bitfinex/quotes_BTCUSD_20241022
["timestamp","ask_amount","ask_price","bid_price","bid_amount"]
[1729591804663,0.001825,66979.0,66978.0,0.17086793]
[1729591804925,0.001825,66979.0,66978.0,0.70735337]
[1729591805154,0.001825,66979.0,66978.0,0.60770069]
[1729591805589,0.001825,66979.0,66978.0,0.72633249]
[1729591805807,0.000825,66979.0,66978.0,0.72731655]
[1729591806025,0.000825,66979.0,66978.0,1.17536864]
[1729591806260,0.001825,66979.0,66978.0,1.10831886]
[1729591806463,0.000825,66979.0,66978.0,1.09031886]
[1729591806906,0.001825,66979.0,66978.0,1.10231886]
[1729591807145,0.001825,66979.0,66978.0,0.21843504]
[1729591807355,0.000825,66979.0,66978.0,0.01056593]
[1729591807573,0.001825,66979.0,66978.0,0.02956593]
[1729591807793,0.001825,66979.0,66978.0,0.19186793]
[1729591808003,0.001825,66979.0,66978.0,0.18185378]
[1729591808205,0.001825,66979.0,66978.0,0.31898654]
[1729591808422,0.001825,66979.0,66978.0,0.33000069]
[1729591808889,0.000825,66979.0,66978.0,0.17886793]
[1729591809489,0.000825,66979.0,66978.0,0.19286793]
[1729591809689,0.000825,66979.0,66978.0,0.17886793]
[1729591809927,0.000825,66979.0,66978.0,0.19286793]
[1729591810347,0.000825,66979.0,66978.0,0.17886793]
[1729591810710,0.000825,66979.0,66978.0,0.17686793]
[1729591811119,0.000825,66979.0,66978.0,0.18986793]
[1729591811344,0.000825,66979.0,66978.0,0.17686793]
[1729591811685,0.000825,66979.0,66978.0,0.19086793]
[1729591811887,0.000825,66979.0,66978.0,0.17886793]
[1729591812111,0.001825,66979.0,66978.0,0.19286793]
[1729591812315,0.001825,66979.0,66978.0,0.17886793]
[1729591812543,0.000825,66979.0,66978.0,0.16486793]
[1729591812770,0.000825,66979.0,66978.0,0.17786793]
[1729591812974,0.001825,66979.0,66978.0,0.19086793]
[1729591813406,0.001825,66979.0,66978.0,0.04156593]
[1729591813959,0.30508415,66979.0,66978.0,0.03656593]
[1729591814188,0.30508415,66979.0,66978.0,0.026]
[1729591814430,0.64030618,66979.0,66978.0,0.013]
[1729591814653,0.66268396,66979.0,66978.0,0.013]
[1729591814890,0.55079508,66979.0,66978.0,0.018]
[1729591815128,0.55079508,66979.0,66978.0,0.013]
[1729591815369,0.005,66975.0,66974.0,0.00017966]
[1729591815600,0.3703977,66975.0,66974.0,0.00017966]
[1729591816300,0.154311,66974.0,66973.0,0.00017966]
[1729591816532,0.44040291,66974.0,66973.0,0.00017966]
[1729591817245,0.48514386,66974.0,66973.0,0.00017966]
[1729591818159,0.49014386,66974.0,66973.0,0.00017966]
[1729591818618,0.44940291,66974.0,66973.0,0.00017966]
[1729591822271,0.154325,66968.0,66967.0,0.00165]
[1729591822507,0.51871691,66968.0,66967.0,0.00165]
[1729591822720,0.56343539,66968.0,66967.0,0.00165]
[1729591823158,0.56343539,66968.0,66967.0,0.00182966]
[1729591823407,0.57043539,66968.0,66967.0,0.00282966]
[1729591823643,0.59281073,66968.0,66967.0,0.00282966]
[1729591823889,0.51871691,66968.0,66967.0,0.00182966]
[1729591824168,0.58578184,66968.0,66967.0,0.00182966]
[1729591824387,0.52671691,66968.0,66967.0,0.00282966]
[1729591824821,0.57141265,66968.0,66967.0,0.00282966]
[1729591825273,0.53471691,66968.0,66967.0,0.00382966]
[1729591827437,0.16495915,66968.0,66967.0,0.00382966]
[1729591828630,0.16495915,66968.0,66967.0,0.01437714]
[1729591830872,0.16495915,66968.0,66967.0,0.01121057]
[1729591831773,0.16495915,66968.0,66967.0,0.01897842]
[1729591832003,0.16495915,66968.0,66967.0,0.00382966]
[1729591832215,0.16495915,66968.0,66967.0,0.01897845]
[1729591832434,0.16495915,66968.0,66967.0,0.00382966]
[1729591832658,0.16495915,66968.0,66967.0,0.01897497]
[1729591832883,0.16495915,66968.0,66967.0,0.00382966]
[1729591833130,0.16495915,66968.0,66967.0,0.01897497]
[1729591833344,0.16495915,66968.0,66967.0,0.00382966]
[1729591833554,0.16495915,66968.0,66967.0,0.01897497]
[1729591833766,0.16495915,66968.0,66967.0,0.15315666]
[1729591833985,0.16495915,66968.0,66967.0,0.00382966]
[1729591834210,0.016,66968.0,66967.0,0.16830197]
[1729591834736,0.000825,66974.0,66973.0,0.00017966]
[1729591834957,0.000825,66974.0,66973.0,0.14949266]
[1729591835177,0.000825,66974.0,66973.0,0.16459826]
[1729591835415,0.000825,66974.0,66973.0,0.2505842]
[1729591835645,0.000825,66974.0,66973.0,0.36859826]
[1729591836570,0.001825,66974.0,66973.0,0.37659826]
[1729591836818,0.001825,66974.0,66973.0,0.38773344]
[1729591837293,0.002825,66974.0,66973.0,0.22542044]
[1729591837524,0.002825,66974.0,66973.0,0.37473344]
[1729591837754,0.001825,66974.0,66973.0,0.36673344]
[1729591838227,0.002825,66974.0,66973.0,0.37573344]
[1729591838896,0.002825,66974.0,66973.0,0.22642044]
[1729591839114,0.30109515,66974.0,66973.0,0.04542044]
[1729591839353,0.43822791,66974.0,66973.0,0.04542044]
[1729591839632,0.43822791,66974.0,66973.0,0.03013518]
[1729591839859,0.44322791,66974.0,66973.0,0.03013518]
[1729591840411,0.44222791,66974.0,66973.0,0.02013518]
[1729591840610,0.44222791,66974.0,66973.0,0.01131484]
[1729591840853,0.44122791,66974.0,66973.0,0.01231484]
[1729591841054,0.44122791,66974.0,66973.0,0.01213518]
[1729591841479,0.44622791,66974.0,66973.0,0.01213518]
[1729591841683,0.44622791,66974.0,66973.0,0.01131484]
[1729591841889,0.45122791,66974.0,66973.0,0.01131484]
[1729591842101,0.31409515,66974.0,66973.0,0.01131484]
[1729591842301,0.15978415,66974.0,66973.0,0.01131484]
[1729591842520,0.30909515,66974.0,66973.0,0.01131484]
[1729591843634,0.44622791,66974.0,66973.0,0.01131484]
[1729591844480,0.44622791,66974.0,66973.0,0.00017966]
[1729591846444,0.44622791,66974.0,66972.0,0.00017966]
[1729591846445,0.149313,66973.0,66972.0,0.00017966]
[1729591846650,0.010825,66974.0,66973.0,0.00017966]
[1729591847310,0.005825,66974.0,66973.0,0.01525799]
[1729591847537,0.005825,66974.0,66973.0,0.00017966]
[1729591847751,0.15478415,66974.0,66973.0,0.01525799]
[1729591847973,0.15478415,66974.0,66973.0,0.00017966]
[1729591848201,0.15478415,66974.0,66973.0,0.01525799]
[1729591848421,0.010825,66974.0,66973.0,0.16457099]
[1729591848866,0.010825,66974.0,66973.0,0.01525799]
[1729591849302,0.005825,66974.0,66973.0,0.01525799]
[1729591849524,0.006825,66974.0,66973.0,0.01525799]
[1729591849747,0.001825,66974.0,66973.0,0.01525799]
[1729591849978,0.001825,66974.0,66973.0,0.01507833]
[1729591849979,0.29909515,66974.0,66973.0,0.01507833]
[1729591850208,0.43622791,66974.0,66973.0,0.01725799]
[1729591850415,0.44122791,66974.0,66973.0,0.00217966]
[1729591851061,0.43622791,66974.0,66973.0,0.00217966]
[1729591851926,0.43622791,66974.0,66973.0,0.00417966]
[1729591852370,0.43622791,66974.0,66973.0,0.004]
[1729591852642,0.43622791,66974.0,66973.0,0.00417966]
[1729591852865,0.43622791,66974.0,66973.0,0.004]
[1729591853478,0.43622791,66974.0,66973.0,0.00417966]
[1729591853681,0.43622791,66974.0,66973.0,0.004]
[1729591853954,0.43622791,66974.0,66973.0,0.00417966]
[1729591854155,0.87597402,66974.0,66973.0,0.004]
[1729591854381,0.87797402,66974.0,66973.0,0.004]
[1729591854622,0.87797402,66974.0,66959.0,0.22430268]
[1729591854623,0.0826,66960.0,66959.0,0.00165]
[1729591854850,0.0826,66960.0,66950.0,0.00165]
[1729591854851,0.154362,66951.0,66950.0,0.00165]
[1729591855324,0.29149476,66951.0,66950.0,0.01685151]
[1729591855544,0.29149476,66951.0,66950.0,0.00165]
[1729591856191,0.44045391,66951.0,66950.0,0.00165]
[1729591856404,0.44045391,66951.0,66950.0,0.00265]
[1729591856405,0.49512411,66951.0,66950.0,0.00265]
[1729591857090,0.50712411,66951.0,66950.0,0.00365]
[1729591857314,0.46245391,66951.0,66950.0,0.00365]
[1729591860420,0.56245391,66951.0,66950.0,0.00365]
[1729591868994,1.09963935,66951.0,66950.0,0.00365]
[1729591869225,0.53063652,66947.0,66938.0,0.00017966]
[1729591869495,0.53063652,66947.0,66936.0,0.22265268]
[1729591869496,0.67759567,66947.0,66936.0,0.22265268]
[1729591869726,0.67759567,66947.0,66938.0,0.00017966]
[1729591869967,0.54046291,66947.0,66938.0,0.00017966]
[1729591870194,0.40333015,66947.0,66938.0,0.00017966]
[1729591870434,0.40333015,66947.0,66946.0,0.00265]
[1729591870435,0.54846291,66947.0,66946.0,0.00265]
[1729591870660,0.55746291,66947.0,66946.0,0.00365]
[1729591872647,0.55728318,66947.0,66946.0,0.00365]
[1729591880531,0.00482027,66938.0,66930.0,0.00169]
[1729591880765,0.29136003,66931.0,66930.0,0.22434268]
[1729591881232,0.29136003,66931.0,66930.0,0.00169]
[1729591882290,0.44031918,66931.0,66930.0,0.00186966]
[1729591882501,0.44031918,66931.0,66930.0,0.00169]
[1729591882718,0.44031918,66931.0,66930.0,0.00269]
[1729591882930,0.44031918,66931.0,66930.0,0.00169]
[1729591883591,0.44331918,66931.0,66930.0,0.00169]
[1729591884225,0.44531918,66931.0,66930.0,0.00169]
[1729591888703,0.45083943,66931.0,66930.0,0.00169]
[1729591889161,0.45083943,66931.0,66930.0,0.00186966]
[1729591894674,0.45083943,66931.0,66930.0,0.00169]
[1729591894892,0.45083943,66931.0,66930.0,0.00186966]
[1729591895303,0.45083943,66931.0,66930.0,0.00169]
[1729591895435,0.45083943,66931.0,66930.0,0.00186966]
[1729591897592,0.31370667,66931.0,66930.0,0.00186966]
[1729591897852,0.31370667,66931.0,66930.0,0.46201142]
[1729591897853,0.005,66931.0,66930.0,0.46201142]
[1729591898087,0.005,66931.0,66930.0,0.5528804]
[1729591898310,0.005,66931.0,66930.0,0.47627898]
[1729591898781,0.37685095,66944.0,66943.0,0.00017966]
[1729591899007,0.5258101,66944.0,66943.0,0.00017966]
[1729591899480,0.30315742,66944.0,66943.0,0.00017966]
[1729591899907,0.15377942,66944.0,66943.0,0.00017966]
[1729591900115,0.14895915,66944.0,66943.0,0.00017966]
[1729591900334,0.15595915,66944.0,66943.0,0.00117966]
[1729591900803,0.15595915,66944.0,66943.0,0.01572203]
[1729591902239,0.16295915,66944.0,66943.0,0.01572203]
[1729591903515,0.44946991,66944.0,66943.0,0.01572203]
[1729591903989,0.44946991,66944.0,66943.0,0.00117966]
[1729591906085,0.44946991,66944.0,66943.0,0.01568541]
[1729591906762,0.31233715,66944.0,66943.0,0.01568541]
[1729591909039,0.31233715,66944.0,66943.0,0.01554441]
[1729591909925,0.16295915,66944.0,66943.0,0.01554441]
[1729591912024,0.16295915,66944.0,66943.0,0.00186466]
[1729591912449,0.31233715,66944.0,66943.0,0.00186466]
[1729591912664,0.16295915,66944.0,66943.0,0.00186466]
[1729591913502,0.31233715,66944.0,66943.0,0.00186466]
[1729591913928,0.31233715,66944.0,66943.0,0.00156466]
[1729591915946,0.16295915,66944.0,66943.0,0.00156466]
[1729591916392,0.31233715,66944.0,66943.0,0.00156466]
[1729591916611,0.16295915,66944.0,66943.0,0.00156466]
[1729591917085,0.31233715,66944.0,66943.0,0.00156466]
[1729591917515,0.16295915,66944.0,66943.0,0.00156466]
[1729591917731,0.31233715,66944.0,66943.0,0.00156466]
[1729591917942,0.31233715,66944.0,66943.0,0.001385]
[1729591918162,0.31233715,66944.0,66943.0,0.00156466]
[1729591921007,0.16295915,66944.0,66943.0,0.00156466]
[1729591921225,0.31233715,66944.0,66943.0,0.00156466]
[1729591922538,0.31775075,66944.0,66943.0,0.00156466]
[1729591923265,0.45970378,66944.0,66943.0,0.001385]
[1729591923482,0.72472706,66944.0,66943.0,0.001385]
[1729591923700,0.81413256,66944.0,66943.0,0.001385]
[1729591923933,0.72472706,66944.0,66943.0,0.001385]
[1729591927480,0.81413627,66944.0,66943.0,0.001385]
[1729591927892,0.48962746,66944.0,66943.0,0.001385]
[1729591928128,0.46727397,66944.0,66943.0,0.001385]
[1729591929565,0.42257102,66944.0,66943.0,0.001385]
[1729591929818,0.62676022,66944.0,66943.0,0.001385]
[1729591930309,0.72475368,66944.0,66943.0,0.001385]
[1729591930547,0.83651055,66944.0,66943.0,0.001385]
[1729591930845,0.83655781,66944.0,66943.0,0.001385]
[1729591931496,0.80046817,66944.0,66943.0,0.001385]
[1729591932203,0.79346817,66944.0,66943.0,0.001385]
[1729591932640,0.80746817,66944.0,66943.0,0.001385]
[1729591932867,0.80046817,66944.0,66943.0,0.000826]
[1729591933080,0.78646817,66944.0,66943.0,0.000826]
[1729591933287,0.80046817,66944.0,66943.0,0.000826]
[1729591933494,0.78646817,66944.0,66943.0,0.000826]
[1729591933942,0.80046817,66944.0,66943.0,0.000826]
[1729591934385,0.81446817,66944.0,66943.0,0.000826]
[1729591934855,0.95360093,66944.0,66943.0,0.000826]
[1729591935331,0.95525293,66944.0,66943.0,0.000826]
[1729591935553,0.80218552,66944.0,66943.0,0.000826]
[1729591936252,0.81400586,66944.0,66943.0,0.000826]
[1729591936457,0.82800586,66944.0,66943.0,0.000826]
[1729591936683,0.96220654,66944.0,66943.0,0.000826]
[1729591936916,0.96020654,66944.0,66943.0,0.000826]
[1729591937124,0.82600586,66944.0,66943.0,0.000826]
[1729591937627,0.82800586,66944.0,66943.0,0.000826]
[1729591938055,1.12235095,66944.0,66943.0,0.000826]
[1729591938266,0.98813862,66944.0,66943.0,0.000826]
[1729591940507,0.98815163,66944.0,66943.0,0.000826]
[1729591942272,0.97415163,66944.0,66943.0,0.000826]
[1729591942483,0.39136003,66931.0,66930.0,0.00169]
[1729591942692,0.66834631,66931.0,66930.0,0.00169]
[1729591943339,0.6459641,66931.0,66930.0,0.00169]
[1729591943782,0.6599641,66931.0,66930.0,0.00169]
[1729591944248,0.6729641,66931.0,66930.0,0.00169]
[1729591944470,0.58350278,66931.0,66930.0,0.00169]
[1729591945166,0.34831612,66931.0,66930.0,0.00169]
[1729591945394,0.34831612,66931.0,66930.0,0.07759]
[1729591945395,0.47491092,66931.0,66930.0,0.07759]
[1729591945623,0.43018642,66931.0,66930.0,0.07759]
[1729591946076,0.43018642,66931.0,66930.0,0.17039]
[1729591952736,0.42536615,66931.0,66930.0,0.17039]
[1729591952973,0.17595915,66931.0,66930.0,0.17056966]
[1729591953384,0.17595915,66931.0,66930.0,0.18176411]
[1729591953596,0.16195915,66931.0,66930.0,0.18176411]
[1729591953800,0.14895915,66931.0,66930.0,0.18176411]
[1729591954006,0.15795915,66931.0,66930.0,0.18176411]
[1729591954223,0.15695915,66931.0,66930.0,0.18176411]
[1729591954644,0.15395915,66931.0,66930.0,0.18176411]
[1729591954845,0.15895915,66931.0,66930.0,0.18176411]
[1729591955482,0.01,66931.0,66930.0,0.18176411]
[1729591955693,0.01,66931.0,66930.0,0.30788215]
[1729591955904,0.01,66931.0,66930.0,0.33133726]
[1729591956118,0.01,66931.0,66930.0,0.18565455]
[1729591956324,0.01,66931.0,66930.0,0.33506355]
[1729591956325,0.005,66931.0,66930.0,0.33506355]
[1729591956532,0.005,66931.0,66930.0,0.47219631]
[1729591956745,0.01,66931.0,66930.0,0.47219631]
[1729591956992,0.22265268,66937.0,66936.0,0.00017966]
[1729591957213,0.37161183,66937.0,66936.0,0.18107966]
[1729591957444,0.14895915,66937.0,66936.0,0.19595024]
[1729591957654,0.14895915,66937.0,66936.0,0.19223259]
[1729591958975,0.15595915,66937.0,66936.0,0.19595023]
[1729591959180,0.15445915,66937.0,66936.0,0.19223259]
[1729591959605,0.16045915,66937.0,66936.0,0.19595023]
[1729591960073,0.15345915,66937.0,66936.0,0.19223259]
[1729591960504,0.15945915,66937.0,66936.0,0.19595023]
[1729591960737,0.15945915,66937.0,66936.0,0.19223259]
[1729591960941,0.15945915,66937.0,66936.0,0.19595023]
[1729591961833,0.15945915,66937.0,66936.0,0.19223259]
[1729591962054,0.15945915,66937.0,66936.0,0.19595023]
[1729591962279,0.15945915,66937.0,66936.0,0.19223259]
[1729591962722,0.15945915,66937.0,66936.0,0.19595023]
[1729591963149,0.15345915,66937.0,66936.0,0.19223259]
[1729591963613,0.30985315,66937.0,66936.0,0.01133259]
[1729591963838,0.30985315,66937.0,66936.0,0.00017966]
[1729591964062,0.30285315,66937.0,66936.0,0.00017966]
[1729591964257,0.30885315,66937.0,66936.0,0.01133259]
[1729591964484,0.30885315,66937.0,66936.0,0.00017966]
[1729591964699,0.15345915,66937.0,66936.0,0.00017966]
[1729591965099,0.14745915,66937.0,66936.0,0.17257966]
[1729591965303,0.14745915,66937.0,66936.0,0.18373259]
[1729591965304,0.15445915,66937.0,66936.0,0.18373259]
[1729591965509,0.16145915,66937.0,66936.0,0.18373259]
[1729591965724,0.15445915,66937.0,66936.0,0.18745023]
[1729591965938,0.15945915,66937.0,66936.0,0.18745023]
[1729591966386,0.15245915,66937.0,66936.0,0.18745023]
[1729591966604,0.14745915,66937.0,66936.0,0.18745023]
[1729591966815,0.15245915,66937.0,66936.0,0.18745023]
[1729591967443,0.15745915,66937.0,66936.0,0.18745023]
[1729591967905,0.005,66937.0,66936.0,0.33702596]
[1729591968334,0.01,66937.0,66936.0,0.33702596]
[1729591968544,0.005,66937.0,66936.0,0.33702596]
[1729591969019,0.011,66937.0,66936.0,0.18762996]
[1729591969233,0.005,66937.0,66936.0,0.18762996]
[1729591969446,0.003,66937.0,66936.0,0.18762996]
[1729591969666,0.001652,66943.0,66936.0,0.33702596]
[1729591969874,0.001652,66943.0,66936.0,0.18762996]
[1729591969875,0.005,66937.0,66936.0,0.18762996]
[1729591970082,0.007,66937.0,66936.0,0.18762996]
[1729591970299,0.002,66937.0,66936.0,0.18762996]
[1729591970761,0.004,66937.0,66936.0,0.33702596]
[1729591971209,0.002,66937.0,66936.0,0.33702596]
[1729591971423,0.002,66937.0,66936.0,0.18762996]
[1729591971424,0.003,66937.0,66936.0,0.18762996]
[1729591971866,0.003,66937.0,66936.0,0.18845496]
[1729591972096,0.001,66937.0,66936.0,0.18845496]
[1729591972542,0.002,66937.0,66936.0,0.40151726]
[1729591972752,0.001,66937.0,66936.0,0.33785096]
[1729591972967,0.001652,66943.0,66942.0,0.17545939]
[1729591973182,0.001652,66943.0,66942.0,0.46516664]
[1729591973396,0.001652,66943.0,66942.0,0.46217929]
[1729591973617,0.001652,66943.0,66942.0,0.47697357]
[1729591974316,0.001652,66943.0,66942.0,0.48758983]
[1729591974548,0.001652,66946.0,66945.0,0.149376]
[1729591974773,0.001652,66946.0,66945.0,0.75653144]
[1729591975013,0.22265268,66958.0,66946.0,0.01735939]
[1729591975240,0.22265268,66958.0,66946.0,0.6415173]
[1729591975460,0.22265268,66958.0,66946.0,0.80523901]
[1729591975902,0.22265268,66958.0,66946.0,0.79357071]
[1729591976157,0.22265268,66958.0,66946.0,0.79157071]
[1729591976337,0.22265268,66958.0,66946.0,0.80641598]
[1729591976539,0.002652,66947.0,66946.0,0.80641598]
[1729591976796,0.003652,66947.0,66946.0,0.769292]
[1729591977011,0.001652,66947.0,66946.0,0.769292]
[1729591977450,0.002652,66947.0,66946.0,0.769292]
[1729591978346,0.003652,66947.0,66946.0,0.62033285]
[1729591978548,0.003652,66947.0,66946.0,0.58733285]
[1729591978776,0.002652,66947.0,66946.0,0.58733285]
[1729591979190,0.003652,66947.0,66946.0,0.58733285]
[1729591979408,0.003652,66947.0,66946.0,0.736292]
[1729591979624,0.002652,66947.0,66946.0,0.736292]
[1729591979854,0.001652,66947.0,66946.0,0.736292]
[1729591980101,0.002652,66947.0,66946.0,0.736292]
[1729591980309,0.003652,66947.0,66946.0,0.736292]
[1729591980533,0.002652,66947.0,66946.0,0.769292]
[1729591980791,0.003652,66947.0,66946.0,0.769292]
[1729591981440,0.002652,66947.0,66946.0,0.771292]
[1729591981649,0.003652,66947.0,66946.0,0.771292]
[1729591983181,0.003652,66947.0,66946.0,0.78613727]
[1729591983429,0.003652,66947.0,66946.0,0.769292]
[1729591983657,0.003652,66947.0,66946.0,0.771292]
[1729591984137,0.003652,66947.0,66946.0,0.78613727]
[1729591985189,0.003652,66947.0,66946.0,0.7861206]
[1729591985406,0.003652,66947.0,66946.0,0.771292]
[1729591985853,0.003652,66947.0,66946.0,0.78612142]
[1729591986292,0.003652,66947.0,66946.0,0.771292]
[1729591986962,0.003652,66947.0,66946.0,0.7935349]
[1729591987226,0.003652,66947.0,66946.0,0.94249405]
[1729591987868,0.002652,66947.0,66946.0,0.94249405]
[1729591988148,0.001652,66947.0,66946.0,0.94249405]
[1729591988354,0.003652,66947.0,66946.0,0.94249405]
[1729591988582,0.003652,66947.0,66946.0,0.92025115]
[1729591988791,0.003652,66947.0,66946.0,0.94249025]
[1729591989220,0.002652,66947.0,66946.0,0.94249025]
[1729591989439,0.003652,66947.0,66946.0,0.94249025]
[1729591989613,0.002652,66947.0,66946.0,0.94249025]
[1729591989851,0.003652,66947.0,66946.0,0.95249025]
[1729591990461,0.002652,66947.0,66946.0,0.94249025]
[1729591990610,0.003652,66947.0,66946.0,0.95649025]
[1729591991202,0.003652,66947.0,66946.0,0.94249025]
[1729591991406,0.001652,66947.0,66946.0,0.94249025]
[1729591991934,0.002652,66947.0,66946.0,0.95249025]
[1729591992138,0.001652,66947.0,66946.0,0.92025115]
[1729591992592,0.002652,66947.0,66946.0,0.95249264]
[1729591992805,0.003652,66947.0,66946.0,0.96249264]
[1729591993225,0.002652,66947.0,66946.0,0.95249264]
[1729591993677,0.003652,66947.0,66946.0,0.96249264]
[1729591994111,0.002652,66947.0,66946.0,0.95249264]
[1729591994330,0.003652,66947.0,66946.0,1.00070262]
[1729591994552,0.003652,66947.0,66946.0,0.99070262]
[1729591994553,0.002652,66947.0,66946.0,0.99070262]
[1729591995009,0.003652,66947.0,66946.0,1.00070262]
[1729591995947,0.003652,66947.0,66946.0,0.97846113]
[1729591996162,0.003652,66947.0,66946.0,1.00071207]
[1729591996823,0.22265268,66962.0,66961.0,0.00535939]
[1729591997062,0.22265268,66962.0,66961.0,0.53139721]
[1729591997325,0.000825,66974.0,66973.0,0.00035939]
[1729591997516,0.000825,66974.0,66973.0,0.31704583]
[1729591997735,0.000825,66974.0,66973.0,0.32204583]
[1729591997940,0.000825,66974.0,66973.0,0.3365502]
[1729591998372,0.000825,66974.0,66973.0,0.34159281]
[1729591998633,0.000825,66974.0,66973.0,0.36384375]
[1729591998850,0.001825,66974.0,66973.0,0.2569502]
[1729591999064,0.001825,66974.0,66973.0,0.27920114]
[1729591999521,0.001825,66974.0,66973.0,0.27920869]
[1729591999745,0.001825,66974.0,66973.0,0.27914059]
[1729591999966,0.004825,66974.0,66973.0,0.27914059]
[1729592000402,0.004825,66974.0,66973.0,0.40209878]
[1729592002724,0.004825,66974.0,66973.0,0.32849781]
[1729592003398,0.004825,66974.0,66973.0,0.30623932]
[1729592003795,0.004825,66974.0,66973.0,0.32853046]
[1729592004241,0.004825,66974.0,66973.0,0.1963998]
[1729592004448,0.30309515,66974.0,66973.0,0.03697517]
[1729592004668,0.30309515,66974.0,66973.0,0.0224708]
[1729592004893,0.30309515,66974.0,66973.0,0.00017966]
[1729592005982,0.15378415,66974.0,66973.0,0.00017966]
[1729592006263,0.30309515,66974.0,66973.0,0.00017966]
[1729592008507,0.15378415,66974.0,66973.0,0.00017966]
[1729592008739,0.30309515,66974.0,66973.0,0.00017966]
[1729592015858,0.00488837,66948.0,66947.0,0.00165]
[1729592016100,0.28649966,66948.0,66947.0,0.00165]
[1729592016316,0.29138803,66948.0,66947.0,0.00165]
[1729592016776,0.15425937,66947.0,66946.0,0.00090768]
[1729592016987,0.29835587,66947.0,66946.0,0.00090768]
[1729592017417,0.38031852,66947.0,66946.0,0.00090768]
[1729592017640,0.44731502,66947.0,66946.0,0.00090768]
[1729592018054,0.45131502,66947.0,66946.0,0.00190768]
[1729592018261,0.38431852,66947.0,66946.0,0.00190768]
[1729592018675,0.39131852,66947.0,66946.0,0.00290768]
[1729592019337,0.43595848,66947.0,66946.0,0.00290768]
[1729592019773,0.39131852,66947.0,66946.0,0.00290768]
[1729592026649,0.16484752,66947.0,66946.0,0.00290768]
[1729592026891,0.15995915,66947.0,66946.0,0.00290768]
[1729592027114,0.15995915,66947.0,66946.0,0.01194291]
[1729592027325,0.15995915,66947.0,66946.0,0.00290768]
[1729592027529,0.15995915,66947.0,66946.0,0.01194291]
[1729592027757,0.15995915,66947.0,66946.0,0.00290768]
[1729592027982,0.15995915,66947.0,66946.0,0.01194291]
[1729592028226,0.15995915,66947.0,66946.0,0.00290768]
[1729592028457,0.15995915,66947.0,66946.0,0.01194291]
[1729592030723,0.011,66947.0,66946.0,0.1491852]
[1729592030951,0.011,66947.0,66946.0,0.16642854]
[1729592031383,0.007,66947.0,66946.0,0.16542854]
[1729592031612,0.149336,66963.0,66949.0,0.298734]
[1729592031835,0.22265268,66953.0,66949.0,0.298734]
[1729592032108,0.14895915,66959.0,66949.0,0.298734]
[1729592032109,0.14895915,66959.0,66950.0,0.15837618]
[1729592033415,0.14895915,66959.0,66951.0,0.154361]
[1729592033627,0.14895915,66959.0,66951.0,0.005]
[1729592033836,0.14895915,66959.0,66952.0,0.00900066]
[1729592034047,0.15295915,66959.0,66952.0,0.00900066]
[1729592034255,0.15395915,66959.0,66952.0,0.00900066]
[1729592034696,0.15795915,66959.0,66952.0,0.00900066]
[1729592034901,0.15395915,66959.0,66952.0,0.00900066]
[1729592035739,0.15295915,66959.0,66952.0,0.01000066]
[1729592036819,0.15895915,66959.0,66952.0,0.01100066]
[1729592037036,0.15495915,66959.0,66952.0,0.01000066]
[1729592037273,0.15495915,66959.0,66952.0,0.01100066]
[1729592037274,0.15895915,66959.0,66952.0,0.01100066]
[1729592037482,0.15895915,66959.0,66952.0,0.01000066]
[1729592037483,0.15295915,66959.0,66952.0,0.01000066]
[1729592037686,0.15895915,66959.0,66952.0,0.01100066]
[1729592038159,0.15895915,66959.0,66952.0,0.16035966]
[1729592038382,0.15895915,66959.0,66952.0,0.01100066]
[1729592040613,0.15895915,66959.0,66954.0,0.00855074]
[1729592040829,0.004,66959.0,66958.0,0.00011163]
[1729592041062,0.22265268,66967.0,66959.0,0.149345]
[1729592041279,0.006,66959.0,66958.0,0.15795047]
[1729592041513,0.01,66959.0,66958.0,0.38288929]
[1729592041738,0.006,66959.0,66958.0,0.46158929]
[1729592041967,0.000825,66974.0,66966.0,0.149329]
[1729592042186,0.22265268,66967.0,66966.0,0.14944063]
[1729592042423,0.14895915,66973.0,66969.0,0.149321]
[1729592042675,0.14895915,66973.0,66967.0,0.149326]
[1729592043130,0.14895915,66973.0,66968.0,0.149324]
[1729592043350,0.14895915,66973.0,66967.0,0.149327]
[1729592043779,0.14895915,66973.0,66969.0,0.00011163]
[1729592044020,0.000825,66974.0,66973.0,0.14942463]
[1729592045602,0.002825,66974.0,66973.0,0.15442463]
[1729592046774,0.006825,66974.0,66973.0,0.15442463]
[1729592047424,0.002825,66974.0,66973.0,0.15442463]
[1729592047645,0.005825,66974.0,66973.0,0.15442463]
[1729592050832,0.005825,66974.0,66973.0,0.29155529]
[1729592051048,0.005825,66974.0,66973.0,0.29654117]
[1729592051952,0.005825,66974.0,66973.0,0.29155529]
[1729592052825,0.005825,66974.0,66973.0,0.46519742]
[1729592053046,0.005825,66974.0,66973.0,0.57485529]
[1729592053782,0.002825,66974.0,66973.0,0.57485529]
[1729592054011,0.000825,66974.0,66973.0,0.58085529]
[1729592054246,0.000825,66974.0,66973.0,0.76481444]
[1729592054707,0.000825,66974.0,66973.0,1.05090425]
[1729592054944,0.000825,66974.0,66973.0,0.91377359]
[1729592055173,0.000825,66974.0,66973.0,1.04390425]
[1729592055394,0.000825,66974.0,66973.0,1.06619747]
[1729592055628,0.000825,66974.0,66973.0,1.05219747]
[1729592056263,0.000825,66974.0,66973.0,0.91506681]
[1729592056483,0.000825,66974.0,66973.0,1.04619747]
[1729592056932,0.000825,66974.0,66973.0,1.06519747]
[1729592057391,0.000825,66979.0,66973.0,1.06519747]
[1729592057392,0.000825,66979.0,66978.0,0.26641363]
[1729592057628,0.000825,66979.0,66978.0,1.03609325]
[1729592057853,0.000825,66979.0,66978.0,1.04434159]
[1729592058768,0.000825,66979.0,66978.0,1.05834159]
[1729592059897,0.000825,66979.0,66978.0,1.04434159]
[1729592060109,0.000825,66979.0,66978.0,1.05734159]
[1729592060325,0.000825,66979.0,66978.0,1.07134159]
[1729592060542,0.000825,66979.0,66978.0,1.04434159]
[1729592061001,0.000825,66979.0,66978.0,1.07234159]
[1729592066582,0.000826,66990.0,66989.0,0.60152029]
[1729592066799,0.000826,66990.0,66989.0,0.89943859]
[1729592067017,0.000826,66990.0,66989.0,0.90758483]
[1729592067897,0.000826,66990.0,66989.0,0.91658483]
[1729592068103,0.000826,66990.0,66989.0,0.92758483]
[1729592069417,0.000826,66990.0,66989.0,0.91858483]
[1729592069648,0.000826,66990.0,66989.0,0.94078214]
[1729592069870,0.000826,66990.0,66989.0,0.94878214]